fUSD/lending_fUSD_20240920
["ID","MTS","AMOUNT","RATE_DAILY","PERIOD"]
[338638002,1726834241290,-437.411758,0.000128,2]
[338638003,1726834241304,-437.411758,0.000128,2]
[338638004,1726834241314,-437.411758,0.000128,2]
[338638005,1726834241323,-437.411758,0.000128,2]
[338638006,1726834241333,-437.411758,0.000128,2]
[338638007,1726834241342,-437.411758,0.000128,2]
[338638008,1726834241352,-437.411758,0.000128,2]
[338638009,1726834241361,-437.411758,0.000128,2]
[338638010,1726834241373,-437.411757,0.000128,2]
[338638011,1726834241382,-151.0,0.000128,2]
[338638012,1726834241393,-151.0,0.000128,2]
[338638013,1726834241405,-151.0,0.000128,2]
[338638014,1726834241417,-151.0,0.000128,2]
[338638015,1726834241426,-151.0,0.000128,2]
[338638016,1726834241436,-296.182257,0.000128,2]
[338638017,1726834241445,-151.0,0.000128,2]
[338638018,1726834241456,-205.945385,0.000128,2]
[338638019,1726834241467,-170.133367,0.000128,2]
[338638020,1726834241476,-170.133367,0.000128,2]
[338638021,1726834241486,-170.133367,0.000128,2]
[338638022,1726834241495,-170.133367,0.000128,2]
[338638023,1726834241505,-170.133367,0.000128,2]
[338638024,1726834241514,-170.133367,0.000128,2]
[338638025,1726834241523,-170.133367,0.000128,2]
[338638026,1726834241533,-170.133367,0.000128,2]
[338638027,1726834241543,-170.133367,0.000128,2]
[338638028,1726834241552,-170.13336,0.000128,2]
[338638029,1726834241562,-2035.790637,0.000128,2]
[338638030,1726834241572,-2035.790637,0.000128,2]
[338638031,1726834241582,-2035.790637,0.000128,2]
[338638032,1726834241592,-2035.790637,0.000128,2]
[338638033,1726834241602,-2035.790637,0.000128,2]
[338638034,1726834241612,-2035.790637,0.000128,2]
[338638035,1726834241622,-2035.790637,0.000128,2]
[338638036,1726834241631,-2035.790637,0.000128,2]
[338638037,1726834241641,-2035.790637,0.000128,2]
[338638038,1726834241651,-2035.79063,0.000128,2]
[338638039,1726834241661,-175.162971,0.000128,2]
[338638040,1726834241670,-175.162971,0.000128,2]
[338638041,1726834241679,-175.162971,0.000128,2]
[338638042,1726834241689,-175.162971,0.000128,2]
[338638043,1726834241698,-175.162971,0.000128,2]
[338638044,1726834241708,-175.162971,0.000128,2]
[338638045,1726834241717,-151.0,0.000128,2]
[338638046,1726834241727,-151.0,0.000128,2]
[338638047,1726834241736,-151.0,0.000128,2]
[338638048,1726834241747,-151.0,0.000128,2]
[338638049,1726834241756,-175.162971,0.000128,2]
[338638050,1726834241766,-175.162971,0.000128,2]
[338638051,1726834241775,-175.162971,0.000128,2]
[338638052,1726834241786,-175.162971,0.000128,2]
[338638053,1726834241794,-175.162971,0.000128,2]
[338638054,1726834241804,-175.162962,0.000128,2]
[338638055,1726834241813,-2279.925044,0.000128,2]
[338638056,1726834241823,-151.0,0.000128,2]
[338638057,1726834241833,-2279.925044,0.000128,2]
[338638058,1726834241842,-151.0,0.000128,2]
[338638059,1726834241851,-2279.925044,0.000128,2]
[338638060,1726834241861,-2279.925044,0.000128,2]
[338638061,1726834241870,-165.166817,0.000128,2]
[338638062,1726834241879,-2279.925044,0.000128,2]
[338638063,1726834241889,-2279.925044,0.000128,2]
[338638064,1726834241898,-2279.925044,0.000128,2]
[338638065,1726834241908,-2279.925044,0.000128,2]
[338638066,1726834241917,-2279.925044,0.000128,2]
[338638067,1726834241926,-2279.925044,0.000128,2]
[338638068,1726834241935,-2279.925044,0.000128,2]
[338638069,1726834241944,-2279.92505,0.000128,2]
[338638070,1726834241954,-2799.576968,0.000128,2]
[338638071,1726834241963,-2799.576968,0.000128,2]
[338638072,1726834241974,-2799.576968,0.000128,2]
[338638073,1726834241983,-2799.576968,0.000128,2]
[338638074,1726834241992,-2799.576968,0.000128,2]
[338638075,1726834242002,-2799.576968,0.000128,2]
[338638076,1726834242011,-2799.576968,0.000128,2]
[338638077,1726834242020,-2799.576968,0.000128,2]
[338638078,1726834242029,-2799.576968,0.000128,2]
[338638079,1726834242038,-2799.576968,0.000128,2]
[338638080,1726834242047,-2799.576968,0.000128,2]
[338638081,1726834242057,-2799.576966,0.000128,2]
[338638082,1726834242066,-151.0,0.000128,2]
[338638083,1726834242076,-152.639911,0.000128,2]
[338638084,1726834242086,-151.0,0.000128,2]
[338638085,1726834242095,-151.0,0.000128,2]
[338638086,1726834242106,-151.0,0.000128,2]
[338638087,1726834242115,-151.0,0.000128,2]
[338638088,1726834242126,-151.0,0.000128,2]
[338638089,1726834242136,-1047.34121,0.000128,2]
[338638090,1726834242146,-151.0,0.000128,2]
[338638091,1726834242156,-1047.34121,0.000128,2]
[338638092,1726834242165,-1047.34121,0.000128,2]
[338638093,1726834242174,-1047.34121,0.000128,2]
[338638094,1726834242183,-1047.34121,0.000128,2]
[338638095,1726834242192,-1047.34121,0.000128,2]
[338638096,1726834242202,-1047.34121,0.000128,2]
[338638097,1726834242212,-1047.34121,0.000128,2]
[338638098,1726834242224,-1047.34121,0.000128,2]
[338638099,1726834242235,-1047.341202,0.000128,2]
[338638100,1726834242245,-253.549941,0.000128,2]
[338638101,1726834242254,-253.549941,0.000128,2]
[338638102,1726834242265,-253.549941,0.000128,2]
[338638103,1726834242275,-253.549941,0.000128,2]
[338638104,1726834242285,-253.549941,0.000128,2]
[338638105,1726834242295,-253.549941,0.000128,2]
[338638106,1726834242307,-253.549941,0.000128,2]
[338638107,1726834242317,-253.549941,0.000128,2]
[338638108,1726834242328,-253.549941,0.000128,2]
[338638109,1726834242339,-253.549941,0.000128,2]
[338638110,1726834242349,-253.549941,0.000128,2]
[338638111,1726834242359,-253.549937,0.000128,2]
[338638112,1726834242372,-287.904389,0.000128,2]
[338638113,1726834242382,-312.977785,0.000128,2]
[338638114,1726834242391,-312.977785,0.000128,2]
[338638115,1726834242402,-312.977785,0.000128,2]
[338638116,1726834242411,-312.977785,0.000128,2]
[338638117,1726834242422,-312.977785,0.000128,2]
[338638118,1726834242433,-312.977785,0.000128,2]
[338638119,1726834242444,-197.925722,0.000128,2]
[338638120,1726834242453,-312.977785,0.000128,2]
[338638121,1726834242462,-197.925722,0.000128,2]
[338638122,1726834242472,-312.977776,0.000128,2]
[338638123,1726834242481,-197.925722,0.000128,2]
[338638124,1726834242490,-197.925722,0.000128,2]
[338638126,1726834242500,-197.925722,0.000128,2]
[338638128,1726834242510,-197.925722,0.000128,2]
[338638130,1726834242519,-197.925722,0.000128,2]
[338638132,1726834242529,-197.925722,0.000128,2]
[338638134,1726834242540,-197.925722,0.000128,2]
[338638136,1726834242549,-197.925722,0.000128,2]
[338638137,1726834242559,-197.925722,0.000128,2]
[338638138,1726834242569,-197.92573,0.000128,2]
[338638139,1726834242579,-247.393803,0.000128,2]
[338638140,1726834242588,-247.393811,0.000128,2]
[338638141,1726834242598,-174.039659,0.000128,2]
[338638142,1726834242608,-174.039659,0.000128,2]
[338638143,1726834242618,-174.039659,0.000128,2]
[338638144,1726834242628,-174.039659,0.000128,2]
[338638145,1726834242637,-174.039659,0.000128,2]
[338638146,1726834242648,-174.039659,0.000128,2]
[338638147,1726834242657,-2353.150788,0.000128,2]
[338638148,1726834242667,-2353.150788,0.000128,2]
[338638149,1726834242677,-174.039659,0.000128,2]
[338638150,1726834242687,-2353.150788,0.000128,2]
[338638151,1726834242697,-174.039659,0.000128,2]
[338638152,1726834242706,-2353.150788,0.000128,2]
[338638153,1726834242716,-174.039659,0.000128,2]
[338638154,1726834242726,-174.039659,0.000128,2]
[338638155,1726834242735,-174.039659,0.000128,2]
[338638156,1726834242746,-174.03965,0.000128,2]
[338638157,1726834242756,-2353.150788,0.000128,2]
[338638158,1726834242766,-2353.150788,0.000128,2]
[338638159,1726834242776,-2353.150788,0.000128,2]
[338638160,1726834242785,-2353.150781,0.000128,2]
[338638161,1726834242795,-2029.662718,0.000128,2]
[338638162,1726834242805,-2029.662716,0.000128,2]
[338638163,1726834242814,-324.210535,0.000128,2]
[338638164,1726834242823,-324.210533,0.000128,2]
[338638165,1726834242832,-101893.0,0.000128,2]
[338638166,1726834242842,-151.0,0.000128,2]
[338638167,1726834242852,-151.0,0.000128,2]
[338638168,1726834242861,-151.0,0.000128,2]
[338638169,1726834242870,-151.0,0.000128,2]
[338638170,1726834242880,-151.0,0.000128,2]
[338638171,1726834242890,-151.0,0.000128,2]
[338638172,1726834242900,-631.335234,0.000128,2]
[338638173,1726834242909,-631.335234,0.000128,2]
[338638174,1726834242919,-631.335234,0.000128,2]
[338638175,1726834242928,-631.335234,0.000128,2]
[338638176,1726834242938,-631.335234,0.000128,2]
[338638177,1726834242948,-631.335234,0.000128,2]
[338638178,1726834242957,-631.335234,0.000128,2]
[338638179,1726834242967,-631.335228,0.000128,2]
[338638180,1726834242976,-4746.425846,0.000128,2]
[338638181,1726834242986,-4746.42584,0.000128,2]
[338638182,1726834242996,-1233.26292703,0.000128,2]
[338638183,1726834243007,-38176.96228384,0.000128,2]
[338638184,1726834243017,-763.10088747,0.00012802,2]
[338638186,1726834243027,-763.10088747,0.00012827,2]
[338638188,1726834243036,-222.0,0.00012833,2]
[338638189,1726834243046,-796.0,0.00012839,2]
[338638190,1726834243056,-247.291,0.00012846,2]
[338638191,1726834243066,-5952.266,0.00012846,2]
[338638192,1726834243076,-13489.0,0.00012846,2]
[338638193,1726834243085,-1079.0,0.00012846,2]
[338638194,1726834243095,-763.10088747,0.00012851,2]
[338638195,1726834243105,-150.599076,0.00012859,2]
[338638196,1726834243114,-213.0,0.0001287,2]
[338638197,1726834243124,-2089.63166688,0.0001287,2]
[338638198,1726834243133,-169.210078,0.0001287,2]
[338638199,1726834243143,-169.210078,0.0001287,2]
[338638200,1726834243153,-335.733441,0.0001287,2]
[338638201,1726834243163,-335.733441,0.0001287,2]
[338638202,1726834243173,-591.900159,0.0001287,2]
[338638203,1726834243183,-591.900159,0.0001287,2]
[338638204,1726834243193,-763.10088747,0.00012876,2]
[338638205,1726834243203,-151.0,0.00012895,2]
[338638206,1726834243213,-202.852874,0.00012895,2]
[338638207,1726834243222,-202.852874,0.00012895,2]
[338638208,1726834243232,-151.0,0.00012895,2]
[338638209,1726834243241,-151.0,0.00012895,2]
[338638210,1726834243251,-259.233655,0.00012895,2]
[338638211,1726834243260,-259.233655,0.00012895,2]
[338638212,1726834243270,-151.0,0.00012895,2]
[338638213,1726834243279,-151.0,0.00012895,2]
[338638214,1726834243289,-672.654457,0.00012895,2]
[338638215,1726834243300,-672.654457,0.00012895,2]
[338638216,1726834243310,-154.607578,0.00012895,2]
[338638217,1726834243319,-154.607578,0.00012895,2]
[338638218,1726834243329,-500.0,0.00012895,2]
[338638219,1726834243339,-200.0,0.00012895,2]
[338638220,1726834243348,-450.64983498,0.00012899,2]
[338638221,1726834243358,-450.64983497,0.000129,2]
[338638222,1726834243368,-703.0,0.000129,2]
[338638223,1726834243380,-150.4,0.000129,2]
[338638224,1726834243390,-151.0,0.000129,2]
[338638225,1726834243402,-151.0,0.000129,2]
[338638226,1726834243413,-339.53865613,0.000129,2]
[338638227,1726834243423,-202.852874,0.000129,2]
[338638228,1726834243433,-202.852874,0.000129,2]
[338638229,1726834243445,-202.852874,0.000129,2]
[338638230,1726834243454,-202.852874,0.000129,2]
[338638231,1726834243464,-151.0,0.000129,2]
[338638232,1726834243473,-161.451914,0.000129,2]
[338638233,1726834243483,-264.758921,0.000129,2]
[338638234,1726834243493,-259.233655,0.000129,2]
[338638235,1726834243503,-259.233655,0.000129,2]
[338638236,1726834243513,-259.233655,0.000129,2]
[338638237,1726834243522,-259.233655,0.000129,2]
[338638238,1726834243532,-151.0,0.000129,2]
[338638239,1726834243541,-151.0,0.000129,2]
[338638240,1726834243552,-169.210078,0.000129,2]
[338638241,1726834243562,-169.210078,0.000129,2]
[338638242,1726834243572,-169.210078,0.000129,2]
[338638243,1726834243582,-151.0,0.000129,2]
[338638244,1726834243591,-169.210078,0.000129,2]
[338638245,1726834243601,-151.0,0.000129,2]
[338638246,1726834243612,-335.733441,0.000129,2]
[338638247,1726834243622,-335.733441,0.000129,2]
[338638248,1726834243631,-335.733441,0.000129,2]
[338638249,1726834243641,-591.900159,0.000129,2]
[338638250,1726834243652,-335.733441,0.000129,2]
[338638251,1726834243660,-591.900159,0.000129,2]
[338638252,1726834243670,-591.900159,0.000129,2]
[338638253,1726834243679,-591.900159,0.000129,2]
[338638254,1726834243689,-151.0,0.000129,2]
[338638255,1726834243699,-151.0,0.000129,2]
[338638256,1726834243709,-151.0,0.000129,2]
[338638257,1726834243719,-151.0,0.000129,2]
[338638258,1726834243729,-354.011271,0.000129,2]
[338638259,1726834243739,-354.011271,0.000129,2]
[338638260,1726834243749,-354.011271,0.000129,2]
[338638261,1726834243760,-354.011271,0.000129,2]
[338638262,1726834243769,-199.96458,0.000129,2]
[338638263,1726834243779,-199.96458,0.000129,2]
[338638264,1726834243789,-199.96458,0.000129,2]
[338638265,1726834243799,-199.96458,0.000129,2]
[338638266,1726834243809,-2087.160131,0.000129,2]
[338638267,1726834243818,-2087.160131,0.000129,2]
[338638268,1726834243828,-2087.160131,0.000129,2]
[338638269,1726834243837,-2087.160131,0.000129,2]
[338638270,1726834243847,-151.0,0.000129,2]
[338638271,1726834243857,-151.0,0.000129,2]
[338638272,1726834243866,-672.654457,0.000129,2]
[338638273,1726834243876,-672.654457,0.000129,2]
[338638274,1726834243886,-672.654457,0.000129,2]
[338638275,1726834243897,-672.654463,0.000129,2]
[338638276,1726834243907,-458.345959,0.000129,2]
[338638277,1726834243917,-458.345959,0.000129,2]
[338638278,1726834243927,-458.345959,0.000129,2]
[338638279,1726834243937,-204.833007,0.000129,2]
[338638280,1726834243947,-458.345959,0.000129,2]
[338638281,1726834243957,-204.833007,0.000129,2]
[338638282,1726834243967,-151.0,0.000129,2]
[338638283,1726834243977,-151.0,0.000129,2]
[338638284,1726834243987,-154.607578,0.000129,2]
[338638285,1726834243996,-154.607578,0.000129,2]
[338638286,1726834244006,-204.833007,0.000129,2]
[338638287,1726834244016,-204.833007,0.000129,2]
[338638288,1726834244025,-199.730244,0.000129,2]
[338638289,1726834244035,-154.607578,0.000129,2]
[338638290,1726834244045,-154.607585,0.000129,2]
[338638291,1726834244054,-198.187029,0.000129,2]
[338638292,1726834244063,-198.187029,0.000129,2]
[338638293,1726834244073,-198.187029,0.000129,2]
[338638294,1726834244083,-198.187029,0.000129,2]
[338638295,1726834244092,-151.0,0.000129,2]
[338638296,1726834244102,-151.0,0.000129,2]
[338638297,1726834244111,-151.0,0.000129,2]
[338638298,1726834244120,-151.0,0.000129,2]
[338638299,1726834244131,-151.0,0.000129,2]
[338638300,1726834244141,-166.89208,0.000129,2]
[338638301,1726834244153,-549.72869791,0.000129,2]
[338638302,1726834244163,-533.42,0.000129,2]
[338638303,1726834244172,-428.09,0.000129,2]
[338638304,1726834244181,-422.7,0.000129,2]
[338638305,1726834244191,-150.0,0.000129,2]
[338638306,1726834244202,-150.0,0.000129,2]
[338638307,1726834244211,-753.25,0.000129,2]
[338638308,1726834244221,-533.42,0.000129,2]
[338638309,1726834244232,-422.7,0.000129,2]
[338638310,1726834244241,-435.78,0.000129,2]
[338638311,1726834244251,-533.42,0.000129,2]
[338638312,1726834244261,-422.7,0.000129,2]
[338638313,1726834244271,-150.0,0.000129,2]
[338638314,1726834244281,-533.42,0.000129,2]
[338638315,1726834244291,-428.09,0.000129,2]
[338638316,1726834244300,-150.0,0.000129,2]
[338638317,1726834244310,-753.25,0.000129,2]
[338638318,1726834244319,-422.7,0.000129,2]
[338638319,1726834244329,-763.10088747,0.000129,2]
[338638320,1726834244339,-1720.0,0.000129,2]
[338638321,1726834244349,-450.64983497,0.000129,2]
[338638322,1726834244359,-164.20438292,0.000129,2]
[338638323,1726834244373,-150.0,0.00012946,2]
[338638324,1726834244382,-250.0,0.00012946,2]
[338638325,1726834244392,-238.714,0.00012946,2]
[338638326,1726834244406,-151.0,0.00012946,2]
[338638327,1726834244419,-286.365245,0.00012946,2]
[338638328,1726834244429,-202.852874,0.00012946,2]
[338638329,1726834244439,-202.852874,0.00012946,2]
[338638330,1726834244452,-202.852874,0.00012946,2]
[338638331,1726834244461,-202.852874,0.00012946,2]
[338638332,1726834244471,-259.233655,0.00012946,2]
[338638333,1726834244481,-259.233655,0.00012946,2]
[338638334,1726834244490,-151.0,0.00012946,2]
[338638335,1726834244500,-169.210078,0.00012946,2]
[338638336,1726834244509,-169.210078,0.00012946,2]
[338638337,1726834244519,-151.0,0.00012946,2]
[338638338,1726834244529,-335.733441,0.00012946,2]
[338638339,1726834244538,-335.733441,0.00012946,2]
[338638340,1726834244548,-591.900159,0.00012946,2]
[338638341,1726834244558,-591.900159,0.00012946,2]
[338638342,1726834244567,-151.0,0.00012946,2]
[338638343,1726834244577,-151.0,0.00012946,2]
[338638344,1726834244587,-354.011271,0.00012946,2]
[338638345,1726834244597,-354.011271,0.00012946,2]
[338638346,1726834244606,-354.011271,0.00012946,2]
[338638347,1726834244617,-354.011274,0.00012946,2]
[338638348,1726834244627,-199.96458,0.00012946,2]
[338638349,1726834244639,-199.96458,0.00012946,2]
[338638350,1726834244649,-199.96458,0.00012946,2]
[338638351,1726834244659,-199.964589,0.00012946,2]
[338638352,1726834244670,-2087.160131,0.00012946,2]
[338638353,1726834244680,-2087.160131,0.00012946,2]
[338638354,1726834244691,-151.0,0.00012946,2]
[338638355,1726834244894,-151.0,0.00012946,2]
[338638356,1726834244907,-458.345959,0.00012946,2]
[338638357,1726834244918,-458.345959,0.00012946,2]
[338638358,1726834244928,-204.833007,0.00012946,2]
[338638359,1726834244939,-458.345959,0.00012946,2]
[338638360,1726834244950,-458.34596,0.00012946,2]
[338638361,1726834244960,-204.833007,0.00012946,2]
[338638362,1726834244970,-151.0,0.00012946,2]
[338638363,1726834244979,-151.0,0.00012946,2]
[338638364,1726834244988,-204.833007,0.00012946,2]
[338638365,1726834244999,-204.833004,0.00012946,2]
[338638366,1726834245008,-198.187029,0.00012946,2]
[338638367,1726834245017,-198.187029,0.00012946,2]
[338638368,1726834245027,-638.514,0.00012946,2]
[338638369,1726834245037,-1261.0,0.00012946,2]
[338638370,1726834245046,-448.0,0.00012946,2]
[338638371,1726834245056,-151.0,0.00012946,2]
[338638372,1726834245066,-151.0,0.00012946,2]
[338638373,1726834245076,-184.336501,0.00012946,2]
[338638374,1726834245085,-423.76899744,0.00012946,2]
[338638375,1726834245272,-447.10255942,0.00012946,2]
[338638376,1726834245284,-344.19142609,0.00012946,2]
[338638377,1726834245295,-335.91401705,0.00012946,2]
[338638378,1726834245304,-150.486,0.00012946,2]
[338638379,1726834245313,-561.512,0.00012946,2]
[338638380,1726834245323,-932.0,0.00012946,2]
[338638381,1726834245332,-809.0,0.00012946,2]
[338638382,1726834245342,-557.392,0.00012946,2]
[338638383,1726834245352,-1903.0,0.00012946,2]
[338638384,1726834245361,-2283.58462103,0.00012946,2]
[338638385,1726834245373,-689.30241408,0.00012946,2]
[338638386,1726834245387,-370.11296489,0.00012946,2]
[338638387,1726834245396,-812.0,0.00012946,2]
[338638388,1726834245407,-252.647,0.00012946,2]
[338638389,1726834245417,-1914.0,0.00012946,2]
[338638390,1726834245427,-422.382,0.00012952,2]
[338638391,1726834245436,-175.746,0.00012952,2]
[338638392,1726834245446,-587.30172419,0.00012973,2]
[338638393,1726834245457,-500.0,0.00012973,2]
[338638394,1726834245467,-259.233655,0.00012973,2]
[338638395,1726834245476,-259.233655,0.00012973,2]
[338638396,1726834245485,-151.0,0.00012973,2]
[338638397,1726834245495,-205.435578,0.00012973,2]
[338638398,1726834245505,-35546.0,0.00012986,2]
[338638399,1726834245514,-150.0,0.00012986,2]
[338638400,1726834245524,-150.0,0.00012986,2]
[338638401,1726834245534,-255.8274404,0.00012989,2]
[338638402,1726834245544,-255.8274404,0.0001299,2]
[338638403,1726834245554,-1070.50119497,0.00012999,3]
[338638404,1726834245564,-6067.30967116,0.00012999,2]
[338638405,1726834245574,-1052.89411251,0.00012999,2]
[338638406,1726834245584,-273.37282959,0.00012999,2]
[338638407,1726834245594,-882.26078153,0.00012999,2]
[338638408,1726834245603,-169.210078,0.00012999,2]
[338638409,1726834245614,-169.210078,0.00012999,2]
[338638410,1726834245624,-335.733441,0.00012999,2]
[338638411,1726834245633,-335.733441,0.00012999,2]
[338638412,1726834245643,-591.900159,0.00012999,2]
[338638413,1726834245653,-591.900159,0.00012999,2]
[338638414,1726834245664,-151.0,0.00012999,2]
[338638415,1726834245673,-151.0,0.00012999,2]
[338638416,1726834245683,-187680.78297036,0.00012999,5]
[338638417,1726834245695,-1082.20619054,0.00012999,5]
[338638418,1726834245707,-377.277724,0.00012999,5]
[338638419,1726834245720,-603.03497768,0.00012999,5]
[338638420,1726834245741,-797.175,0.0001278,2]
[338638423,1726834245905,150.0,0.00011881,2]
[338638424,1726834246132,-151.0,0.00012779,2]
[338638425,1726834246142,-7656.49218914,0.0001278,2]
[338638426,1726834246154,-1018.81330539,0.0001278,2]
[338638427,1726834246166,-527.51950547,0.0001278,2]
[338638428,1726834246176,-460.02320367,0.0001278,2]
[338638429,1726834246187,-2242.44212245,0.0001278,2]
[338638430,1726834246205,-362.78211077,0.0001278,2]
[338638431,1726834246216,-485.28526725,0.0001278,2]
[338638432,1726834246228,-460.89263148,0.0001278,2]
[338638433,1726834246239,-903.83149778,0.0001278,2]
[338638434,1726834246251,-5084.7431666,0.0001278,2]
[338638435,1726834246261,-9018.73908003,0.0001278,2]
[338638436,1726834246278,-279.05945716,0.00012567,2]
[338638437,1726834246288,-0.56054284,0.0001278,2]
[338638438,1726834246300,-980.70037713,0.0001278,2]
[338638439,1726834246309,-6043.10981224,0.0001278,2]
[338638440,1726834246321,-3956.89018776,0.0001278,2]
[338638441,1726834246331,-10000.0,0.0001278,2]
[338638442,1726834246340,-10000.0,0.0001278,2]
[338638443,1726834246350,-4730.01906025,0.0001278,2]
[338638444,1726834246363,-504.33495857,0.0001278,2]
[338638445,1726834246376,-1284.82444145,0.0001278,2]
[338638446,1726834246389,-3480.82153973,0.0001278,2]
[338638447,1726834246399,-1242.70184824,0.0001278,2]
[338638448,1726834246410,-688.5,0.0001278,2]
[338638449,1726834246449,-150.0,0.00012643,2]
[338638450,1726834246459,-584.6067311,0.0001278,2]
[338638451,1726834246470,-505.66665384,0.0001278,2]
[338638452,1726834246482,-521.59343028,0.0001278,2]
[338638453,1726834246494,-453.16590618,0.0001278,2]
[338638454,1726834246506,-2809.89847193,0.0001278,2]
[338638455,1726834246517,-3193.86695843,0.0001278,2]
[338638456,1726834246527,-10000.0,0.0001278,2]
[338638457,1726834246536,-10000.0,0.0001278,2]
[338638458,1726834246546,-10000.0,0.0001278,2]
[338638459,1726834246555,-151.0,0.0001278,2]
[338638460,1726834246565,-10000.0,0.0001278,2]
[338638461,1726834246575,-151.0,0.0001278,2]
[338638462,1726834246585,-10000.0,0.0001278,2]
[338638463,1726834246595,-10000.0,0.0001278,2]
[338638464,1726834246604,-10000.0,0.0001278,2]
[338638465,1726834246614,-10000.0,0.0001278,2]
[338638466,1726834246626,-10000.0,0.0001278,2]
[338638467,1726834246636,-500.0,0.00012973,2]
[338638468,1726834246646,-20410.21731038,0.00012999,5]
[338638469,1726834246669,-150.0,0.0001265,2]
[338638470,1726834246679,-10000.0,0.0001278,2]
[338638471,1726834246689,-203313.34793062,0.00012999,5]
[338638472,1726834246700,-641.30813083,0.00012999,5]
[338638473,1726834246725,-150.0,0.00012549,2]
[338638474,1726834246735,-150.0,0.00012551,2]
[338638475,1726834246745,-73.41220512,0.00012999,5]
[338638476,1726834246882,-150.0,0.00012528,2]
[338638477,1726834246893,-150.0,0.00012547,2]
[338638478,1726834246903,-150.0,0.0001261,2]
[338638479,1726834246913,-150.0,0.0001261,2]
[338638480,1726834246922,-150.0,0.00012645,2]
[338638481,1726834246933,-150.0,0.00012652,2]
[338638482,1726834246942,-150.0,0.00012689,2]
[338638483,1726834246952,-10000.0,0.0001278,2]
[338638484,1726834246962,-1851.39248013,0.0001278,2]
[338638485,1726834247144,-8148.60751987,0.0001278,2]
[338638486,1726834247156,-10000.0,0.0001278,2]
[338638487,1726834247166,-4839.286393,0.0001278,2]
[338638488,1726834247177,-1537.08442259,0.0001278,2]
[338638489,1726834270231,500.0,0.00011164,2]
[338638490,1726834270876,540.6,9.849e-05,2]
[338638491,1726834272737,500.0,0.00011164,2]
[338638492,1726834292773,500.0,0.00011164,2]
[338638493,1726834306759,150.0,0.00011945,2]
[338638494,1726834306782,46.14,0.00011945,2]
[338638495,1726834323010,250.0,0.00011934,2]
[338638496,1726834344145,241.11,0.000149,31]
[338638497,1726834344178,241.11,0.000149,31]
[338638498,1726834344210,241.11,0.000149,31]
[338638499,1726834344254,241.11,0.000149,31]
[338638500,1726834344319,241.11,0.000149,31]
[338638501,1726834344375,241.11,0.000149,31]
[338638502,1726834344530,241.11,0.000149,31]
[338638503,1726834344576,241.11,0.000149,31]
[338638504,1726834344639,241.11,0.000149,31]
[338638505,1726834344720,241.11,0.000149,31]
[338638506,1726834344754,241.11,0.000149,31]
[338638507,1726834344829,241.11,0.000149,31]
[338638508,1726834344871,241.11,0.000149,31]
[338638509,1726834344913,241.11,0.000149,31]
[338638510,1726834344975,241.11,0.000149,31]
[338638511,1726834345036,241.11,0.000149,31]